{"text_format":"1","workbook":"xlsx","n_sheets":2,"sheets":["Zadání mzdy","šablona_výplatnice"],"not_rendered":{"charts":0,"images":0,"macros":1,"external_links":0,"defined_names":7,"comments":0,"pivot_tables":0},"unopened":[],"bounds":{"document_bytes":16777216,"sheet_cells":100000,"rows_first":2000,"rows_last":500,"rows_between":2000,"halvings":0,"cell_chars":16384,"cell_head_chars":4096},"cells_cut":0,"cells_raw":0,"read":"whole","date_system":"1900"}

{"sheet":"Zadání mzdy","index":0,"n_rows":13,"n_cols":24,"rows_kept":13,"cut":false,"hidden":false,"merged":[]}
[null,"KALKULAČKA MEZD",null,null,null,null,null,null,null,null,"KONEC OBDOBÍ:",41372,null,"NÁZEV SPOLEČNOSTI:",null,"ADVENTURE WORKS"]
[]
[null,"ID","Jméno zaměstnance","Odpracované prav. hodiny","Počet hodin dovolené","Počet hodin nemocenské","Hodiny přesčas","Přesčasová sazba","Hrubá mzda","Daně a sráž.","Jiné odpočty:","Čistá mzda"," ","Hodinová mzda","Stav daně","Federální přísp.","Státní daň","Federální daň z příjmů","Sociální pojištění","Zdravotní pojištění","Daně celkem","Srážka pojištění","Ostatní pravidelné srážky","Celkem pravidelné srážky"]
[null,1001,"Tony Smith",50,5,1,null,null,{"$f":"SUM(Zaměstnanci[[#This Row],[Odpracované prav. hodiny]:[Počet hodin nemocenské]])*Zaměstnanci[[#This Row],[Hodinová mzda]]+Zaměstnanci[[#This Row],[Hodiny přesčas]]*Zaměstnanci[[#This Row],[Přesčasová sazba]]","v":560},{"$f":"Zaměstnanci[[#This Row],[Hrubá mzda]]*Zaměstnanci[[#This Row],[Daně celkem]] + Zaměstnanci[[#This Row],[Celkem pravidelné srážky]]","v":273.08000000000004},20,{"$f":"Zaměstnanci[[#This Row],[Hrubá mzda]]-Zaměstnanci[[#This Row],[Daně a sráž.]]-Zaměstnanci[[#This Row],[Jiné odpočty:]]","v":266.91999999999996},null,10,1,4,2.3E-2,0.28000000000000003,6.3E-2,1.4500000000000001E-2,{"$f":"SUM(Zaměstnanci[[#This Row],[Státní daň]:[Zdravotní pojištění]])","v":0.38050000000000006},20,40,{"$f":"SUM(Zaměstnanci[[#This Row],[Srážka pojištění]:[Ostatní pravidelné srážky]])","v":60}]
[null,1002,"David Jones",40,null,null,null,null,{"$f":"SUM(Zaměstnanci[[#This Row],[Odpracované prav. hodiny]:[Počet hodin nemocenské]])*Zaměstnanci[[#This Row],[Hodinová mzda]]+Zaměstnanci[[#This Row],[Hodiny přesčas]]*Zaměstnanci[[#This Row],[Přesčasová sazba]]","v":320},{"$f":"Zaměstnanci[[#This Row],[Hrubá mzda]]*Zaměstnanci[[#This Row],[Daně celkem]] + Zaměstnanci[[#This Row],[Celkem pravidelné srážky]]","v":131.76000000000002},null,{"$f":"Zaměstnanci[[#This Row],[Hrubá mzda]]-Zaměstnanci[[#This Row],[Daně a sráž.]]-Zaměstnanci[[#This Row],[Jiné odpočty:]]","v":188.23999999999998},null,8,1,1,2.3E-2,0.28000000000000003,6.3E-2,1.4500000000000001E-2,{"$f":"SUM(Zaměstnanci[[#This Row],[Státní daň]:[Zdravotní pojištění]])","v":0.38050000000000006},0,10,{"$f":"SUM(Zaměstnanci[[#This Row],[Srážka pojištění]:[Ostatní pravidelné srážky]])","v":10}]
[null,1003,"Denise Smith",35,3,null,null,null,{"$f":"SUM(Zaměstnanci[[#This Row],[Odpracované prav. hodiny]:[Počet hodin nemocenské]])*Zaměstnanci[[#This Row],[Hodinová mzda]]+Zaměstnanci[[#This Row],[Hodiny přesčas]]*Zaměstnanci[[#This Row],[Přesčasová sazba]]","v":532},{"$f":"Zaměstnanci[[#This Row],[Hrubá mzda]]*Zaměstnanci[[#This Row],[Daně celkem]] + Zaměstnanci[[#This Row],[Celkem pravidelné srážky]]","v":240.42600000000004},null,{"$f":"Zaměstnanci[[#This Row],[Hrubá mzda]]-Zaměstnanci[[#This Row],[Daně a sráž.]]-Zaměstnanci[[#This Row],[Jiné odpočty:]]","v":291.57399999999996},null,14,1,3,2.3E-2,0.28000000000000003,6.3E-2,1.4500000000000001E-2,{"$f":"SUM(Zaměstnanci[[#This Row],[Státní daň]:[Zdravotní pojištění]])","v":0.38050000000000006},18,20,{"$f":"SUM(Zaměstnanci[[#This Row],[Srážka pojištění]:[Ostatní pravidelné srážky]])","v":38}]
[null,1008,"Sebastien Motte",50,5,1,null,null,{"$f":"SUM(Zaměstnanci[[#This Row],[Odpracované prav. hodiny]:[Počet hodin nemocenské]])*Zaměstnanci[[#This Row],[Hodinová mzda]]+Zaměstnanci[[#This Row],[Hodiny přesčas]]*Zaměstnanci[[#This Row],[Přesčasová sazba]]","v":1120},{"$f":"Zaměstnanci[[#This Row],[Hrubá mzda]]*Zaměstnanci[[#This Row],[Daně celkem]] + Zaměstnanci[[#This Row],[Celkem pravidelné srážky]]","v":441.16000000000008},null,{"$f":"Zaměstnanci[[#This Row],[Hrubá mzda]]-Zaměstnanci[[#This Row],[Daně a sráž.]]-Zaměstnanci[[#This Row],[Jiné odpočty:]]","v":678.83999999999992},null,20,1,0,2.3E-2,0.28000000000000003,6.3E-2,1.4500000000000001E-2,{"$f":"SUM(Zaměstnanci[[#This Row],[Státní daň]:[Zdravotní pojištění]])","v":0.38050000000000006},15,null,{"$f":"SUM(Zaměstnanci[[#This Row],[Srážka pojištění]:[Ostatní pravidelné srážky]])","v":15}]
[null,1011,"Isabelle Scemla",40,null,null,2,15,{"$f":"SUM(Zaměstnanci[[#This Row],[Odpracované prav. hodiny]:[Počet hodin nemocenské]])*Zaměstnanci[[#This Row],[Hodinová mzda]]+Zaměstnanci[[#This Row],[Hodiny přesčas]]*Zaměstnanci[[#This Row],[Přesčasová sazba]]","v":430},{"$f":"Zaměstnanci[[#This Row],[Hrubá mzda]]*Zaměstnanci[[#This Row],[Daně celkem]] + Zaměstnanci[[#This Row],[Celkem pravidelné srážky]]","v":223.61500000000004},null,{"$f":"Zaměstnanci[[#This Row],[Hrubá mzda]]-Zaměstnanci[[#This Row],[Daně a sráž.]]-Zaměstnanci[[#This Row],[Jiné odpočty:]]","v":206.38499999999996},null,10,1,0,2.3E-2,0.28000000000000003,6.3E-2,1.4500000000000001E-2,{"$f":"SUM(Zaměstnanci[[#This Row],[Státní daň]:[Zdravotní pojištění]])","v":0.38050000000000006},20,40,{"$f":"SUM(Zaměstnanci[[#This Row],[Srážka pojištění]:[Ostatní pravidelné srážky]])","v":60}]
[null,1012,"David Bristol",40,5,1,null,null,{"$f":"SUM(Zaměstnanci[[#This Row],[Odpracované prav. hodiny]:[Počet hodin nemocenské]])*Zaměstnanci[[#This Row],[Hodinová mzda]]+Zaměstnanci[[#This Row],[Hodiny přesčas]]*Zaměstnanci[[#This Row],[Přesčasová sazba]]","v":552},{"$f":"Zaměstnanci[[#This Row],[Hrubá mzda]]*Zaměstnanci[[#This Row],[Daně celkem]] + Zaměstnanci[[#This Row],[Celkem pravidelné srážky]]","v":270.03600000000006},null,{"$f":"Zaměstnanci[[#This Row],[Hrubá mzda]]-Zaměstnanci[[#This Row],[Daně a sráž.]]-Zaměstnanci[[#This Row],[Jiné odpočty:]]","v":281.96399999999994},null,12,1,4,2.3E-2,0.28000000000000003,6.3E-2,1.4500000000000001E-2,{"$f":"SUM(Zaměstnanci[[#This Row],[Státní daň]:[Zdravotní pojištění]])","v":0.38050000000000006},20,40,{"$f":"SUM(Zaměstnanci[[#This Row],[Srážka pojištění]:[Ostatní pravidelné srážky]])","v":60}]
[null,1025,"Anne Weiler",36,null,2,1,18,{"$f":"SUM(Zaměstnanci[[#This Row],[Odpracované prav. hodiny]:[Počet hodin nemocenské]])*Zaměstnanci[[#This Row],[Hodinová mzda]]+Zaměstnanci[[#This Row],[Hodiny přesčas]]*Zaměstnanci[[#This Row],[Přesčasová sazba]]","v":474},{"$f":"Zaměstnanci[[#This Row],[Hrubá mzda]]*Zaměstnanci[[#This Row],[Daně celkem]] + Zaměstnanci[[#This Row],[Celkem pravidelné srážky]]","v":225.35700000000003},25,{"$f":"Zaměstnanci[[#This Row],[Hrubá mzda]]-Zaměstnanci[[#This Row],[Daně a sráž.]]-Zaměstnanci[[#This Row],[Jiné odpočty:]]","v":223.64299999999997},null,12,1,2,2.3E-2,0.28000000000000003,6.3E-2,1.4500000000000001E-2,{"$f":"SUM(Zaměstnanci[[#This Row],[Státní daň]:[Zdravotní pojištění]])","v":0.38050000000000006},25,20,{"$f":"SUM(Zaměstnanci[[#This Row],[Srážka pojištění]:[Ostatní pravidelné srážky]])","v":45}]
[null,1032,"Luka Abrus",40,5,1,null,null,{"$f":"SUM(Zaměstnanci[[#This Row],[Odpracované prav. hodiny]:[Počet hodin nemocenské]])*Zaměstnanci[[#This Row],[Hodinová mzda]]+Zaměstnanci[[#This Row],[Hodiny přesčas]]*Zaměstnanci[[#This Row],[Přesčasová sazba]]","v":460},{"$f":"Zaměstnanci[[#This Row],[Hrubá mzda]]*Zaměstnanci[[#This Row],[Daně celkem]] + Zaměstnanci[[#This Row],[Celkem pravidelné srážky]]","v":175.03000000000003},50,{"$f":"Zaměstnanci[[#This Row],[Hrubá mzda]]-Zaměstnanci[[#This Row],[Daně a sráž.]]-Zaměstnanci[[#This Row],[Jiné odpočty:]]","v":234.96999999999997},null,10,1,3,2.3E-2,0.28000000000000003,6.3E-2,1.4500000000000001E-2,{"$f":"SUM(Zaměstnanci[[#This Row],[Státní daň]:[Zdravotní pojištění]])","v":0.38050000000000006},null,null,{"$f":"SUM(Zaměstnanci[[#This Row],[Srážka pojištění]:[Ostatní pravidelné srážky]])","v":0}]
[null,1049,"David Ludwig",40,1,null,null,null,{"$f":"SUM(Zaměstnanci[[#This Row],[Odpracované prav. hodiny]:[Počet hodin nemocenské]])*Zaměstnanci[[#This Row],[Hodinová mzda]]+Zaměstnanci[[#This Row],[Hodiny přesčas]]*Zaměstnanci[[#This Row],[Přesčasová sazba]]","v":615},{"$f":"Zaměstnanci[[#This Row],[Hrubá mzda]]*Zaměstnanci[[#This Row],[Daně celkem]] + Zaměstnanci[[#This Row],[Celkem pravidelné srážky]]","v":259.00750000000005},23,{"$f":"Zaměstnanci[[#This Row],[Hrubá mzda]]-Zaměstnanci[[#This Row],[Daně a sráž.]]-Zaměstnanci[[#This Row],[Jiné odpočty:]]","v":332.99249999999995},null,15,1,2,2.3E-2,0.28000000000000003,6.3E-2,1.4500000000000001E-2,{"$f":"SUM(Zaměstnanci[[#This Row],[Státní daň]:[Zdravotní pojištění]])","v":0.38050000000000006},25,null,{"$f":"SUM(Zaměstnanci[[#This Row],[Srážka pojištění]:[Ostatní pravidelné srážky]])","v":25}]
[null,"Celkem",{"$f":"SUBTOTAL(103,Zaměstnanci[Jméno zaměstnance])","v":9},{"$f":"SUBTOTAL(109,Zaměstnanci[Odpracované prav. hodiny])","v":371},{"$f":"SUBTOTAL(109,Zaměstnanci[Počet hodin dovolené])","v":24},{"$f":"SUBTOTAL(109,Zaměstnanci[Počet hodin nemocenské])","v":6},{"$f":"SUBTOTAL(109,Zaměstnanci[Hodiny přesčas])","v":3},null,{"$f":"SUBTOTAL(109,Zaměstnanci[Hrubá mzda])","v":5063},{"$f":"SUBTOTAL(109,Zaměstnanci[Daně a sráž.])","v":2239.4715000000001},{"$f":"SUBTOTAL(109,Zaměstnanci[Jiné odpočty:])","v":118},{"$f":"SUBTOTAL(109,Zaměstnanci[Čistá mzda])","v":2705.5284999999994},null,null,null,null,null,null,null,null,null,{"$f":"SUBTOTAL(109,Zaměstnanci[Srážka pojištění])","v":143},{"$f":"SUBTOTAL(109,Zaměstnanci[Ostatní pravidelné srážky])","v":170},{"$f":"SUBTOTAL(109,Zaměstnanci[Celkem pravidelné srážky])","v":313}]

{"sheet":"šablona_výplatnice","index":1,"n_rows":47,"n_cols":13,"rows_kept":47,"cut":false,"hidden":true,"merged":[[2,7,2,8],[14,7,14,8],[26,7,26,8],[38,7,38,8],[38,11,38,12],[26,11,26,12],[14,11,14,12],[2,11,2,12],[2,3,2,4],[14,3,14,4],[26,3,26,4],[38,3,38,4],[44,2,44,3],[8,2,8,3],[9,2,9,3],[45,2,45,3],[32,2,32,3],[33,2,33,3],[20,2,20,3],[21,2,21,3]]}
[]
[null,null,{"$f":"NázevSpolečnosti","v":"ADVENTURE WORKS"}]
[null,null,"OBDOBÍ",{"$f":"KonecObdobí","v":41372},null,null,"JMÉNO",{"$f":"IFERROR(INDEX(Zaměstnanci[Jméno zaměstnance],Výplatnice),\"\")","v":"Tony Smith"},null,null,"ID ZAMĚSTNANCE",{"$f":"IFERROR(INDEX(Zaměstnanci[ID],Výplatnice),\"\")","v":1001}]
[null,null,"Stav daně",null,{"$f":"IFERROR(INDEX(Zaměstnanci[Stav daně],Výplatnice),\"\")","v":1},null,"Federální příspěvek (z W-4)",null,{"$f":"IFERROR(INDEX(Zaměstnanci[Federální přísp.],Výplatnice),\"\")","v":4},null,"Odpracované hodiny",null,{"$f":"IFERROR(INDEX(Zaměstnanci[Odpracované prav. hodiny],Výplatnice),\"\")","v":50}]
[null,null,"Hodinová sazba",null,{"$f":"IFERROR(INDEX(Zaměstnanci[Hodinová mzda],Výplatnice),\"\")","v":10},null,"Přesčasová sazba",null,{"$f":"IFERROR(INDEX(Zaměstnanci[Přesčasová sazba],Výplatnice),\"\")","v":0},null,"Počet hodin nemocenské",null,{"$f":"IFERROR(INDEX(Zaměstnanci[Počet hodin nemocenské],Výplatnice),\"\")","v":1}]
[null,null,"Sociální pojištění",null,{"$f":"IFERROR(INDEX(Zaměstnanci[Sociální pojištění],Výplatnice)  *  INDEX(Zaměstnanci[Hrubá mzda],Výplatnice),\"\")","v":35.28},null,"Federální daň z příjmů",null,{"$f":"IFERROR(INDEX(Zaměstnanci[Federální daň z příjmů],Výplatnice)  *  INDEX(Zaměstnanci[Hrubá mzda],Výplatnice),\"\")","v":156.80000000000001},null,"Počet hodin dovolené",null,{"$f":"IFERROR(INDEX(Zaměstnanci[Počet hodin dovolené],Výplatnice),\"\")","v":5}]
[null,null,"Zdravotní pojištění ",null,{"$f":"IFERROR(INDEX(Zaměstnanci[Zdravotní pojištění],Výplatnice)  *  INDEX(Zaměstnanci[Hrubá mzda],Výplatnice),\"\")","v":8.120000000000001},null,"Státní daň",null,{"$f":"IFERROR(INDEX(Zaměstnanci[Státní daň],Výplatnice)  *  INDEX(Zaměstnanci[Hrubá mzda],Výplatnice),\"\")","v":12.879999999999999},null,"Hodiny přesčas",null,{"$f":"IFERROR(INDEX(Zaměstnanci[Hodiny přesčas],Výplatnice),\"\")","v":0}]
[null,null,"Srážka pojištění",null,{"$f":"IFERROR(INDEX(Zaměstnanci[Srážka pojištění],Výplatnice),\"\")","v":20},null,"Jiné pravidelné srážky",null,{"$f":"IFERROR(INDEX(Zaměstnanci[Ostatní pravidelné srážky],Výplatnice),\"\")","v":40},null,"Hrubá mzda",null,{"$f":"IFERROR(INDEX(Zaměstnanci[Hrubá mzda],Výplatnice),\"\")","v":560}]
[null,null,"Daně celkem",null,{"$f":"IFERROR(INDEX(Zaměstnanci[Daně a sráž.],Výplatnice),\"\")","v":273.08000000000004},null,"Jiné srážky",null,{"$f":"IFERROR(INDEX(Zaměstnanci[Jiné odpočty:],Výplatnice),\"\")","v":20},null,"Daně a odpočty celkem",null,{"$f":"IFERROR(INDEX(Zaměstnanci[Daně a sráž.],Výplatnice)  +  INDEX(Zaměstnanci[Jiné odpočty:],Výplatnice),\"\")","v":293.08000000000004}]
[null,null,"Pravidelné srážky"]
[null,null,null,null,null,null,null,null,null,null,"ČISTÁ MZDA",null,{"$f":"IFERROR(INDEX(Zaměstnanci[Čistá mzda],Výplatnice),\"\")","v":266.91999999999996}]
[]
[]
[null,null,{"$f":"NázevSpolečnosti","v":"ADVENTURE WORKS"}]
[null,null,"OBDOBÍ",{"$f":"KonecObdobí","v":41372},null,null,"JMÉNO",{"$f":"IFERROR(INDEX(Zaměstnanci[Jméno zaměstnance],Výplatnice),\"\")","v":"David Jones"},null,null,"ID ZAMĚSTNANCE",{"$f":"IFERROR(INDEX(Zaměstnanci[ID],Výplatnice),\"\")","v":1002}]
[null,null,"Stav daně",null,{"$f":"IFERROR(INDEX(Zaměstnanci[Stav daně],Výplatnice),\"\")","v":1},null,"Federální příspěvek (z W-4)",null,{"$f":"IFERROR(INDEX(Zaměstnanci[Federální přísp.],Výplatnice),\"\")","v":1},null,"Odpracované hodiny",null,{"$f":"IFERROR(INDEX(Zaměstnanci[Odpracované prav. hodiny],Výplatnice),\"\")","v":40}]
[null,null,"Hodinová sazba",null,{"$f":"IFERROR(INDEX(Zaměstnanci[Hodinová mzda],Výplatnice),\"\")","v":8},null,"Přesčasová sazba",null,{"$f":"IFERROR(INDEX(Zaměstnanci[Přesčasová sazba],Výplatnice),\"\")","v":0},null,"Počet hodin nemocenské",null,{"$f":"IFERROR(INDEX(Zaměstnanci[Počet hodin nemocenské],Výplatnice),\"\")","v":0}]
[null,null,"Sociální pojištění",null,{"$f":"IFERROR(INDEX(Zaměstnanci[Sociální pojištění],Výplatnice)  *  INDEX(Zaměstnanci[Hrubá mzda],Výplatnice),\"\")","v":20.16},null,"Federální daň z příjmů",null,{"$f":"IFERROR(INDEX(Zaměstnanci[Federální daň z příjmů],Výplatnice)  *  INDEX(Zaměstnanci[Hrubá mzda],Výplatnice),\"\")","v":89.600000000000009},null,"Počet hodin dovolené",null,{"$f":"IFERROR(INDEX(Zaměstnanci[Počet hodin dovolené],Výplatnice),\"\")","v":0}]
[null,null,"Zdravotní pojištění ",null,{"$f":"IFERROR(INDEX(Zaměstnanci[Zdravotní pojištění],Výplatnice)  *  INDEX(Zaměstnanci[Hrubá mzda],Výplatnice),\"\")","v":4.6400000000000006},null,"Státní daň",null,{"$f":"IFERROR(INDEX(Zaměstnanci[Státní daň],Výplatnice)  *  INDEX(Zaměstnanci[Hrubá mzda],Výplatnice),\"\")","v":7.3599999999999994},null,"Hodiny přesčas",null,{"$f":"IFERROR(INDEX(Zaměstnanci[Hodiny přesčas],Výplatnice),\"\")","v":0}]
[null,null,"Srážka pojištění",null,{"$f":"IFERROR(INDEX(Zaměstnanci[Srážka pojištění],Výplatnice),\"\")","v":0},null,"Jiné pravidelné srážky",null,{"$f":"IFERROR(INDEX(Zaměstnanci[Ostatní pravidelné srážky],Výplatnice),\"\")","v":10},null,"Hrubá mzda",null,{"$f":"IFERROR(INDEX(Zaměstnanci[Hrubá mzda],Výplatnice),\"\")","v":320}]
[null,null,"Daně celkem",null,{"$f":"IFERROR(INDEX(Zaměstnanci[Daně a sráž.],Výplatnice),\"\")","v":131.76000000000002},null,"Jiné srážky",null,{"$f":"IFERROR(INDEX(Zaměstnanci[Jiné odpočty:],Výplatnice),\"\")","v":0},null,"Daně a odpočty celkem",null,{"$f":"IFERROR(INDEX(Zaměstnanci[Daně a sráž.],Výplatnice)  +  INDEX(Zaměstnanci[Jiné odpočty:],Výplatnice),\"\")","v":131.76000000000002}]
[null,null,"Pravidelné srážky"]
[null,null,null,null,null,null,null,null,null,null,"ČISTÁ MZDA",null,{"$f":"IFERROR(INDEX(Zaměstnanci[Čistá mzda],Výplatnice),\"\")","v":188.23999999999998}]
[]
[]
[null,null,{"$f":"NázevSpolečnosti","v":"ADVENTURE WORKS"}]
[null,null,"OBDOBÍ",{"$f":"KonecObdobí","v":41372},null,null,"JMÉNO",{"$f":"IFERROR(INDEX(Zaměstnanci[Jméno zaměstnance],Výplatnice),\"\")","v":"Denise Smith"},null,null,"ID ZAMĚSTNANCE",{"$f":"IFERROR(INDEX(Zaměstnanci[ID],Výplatnice),\"\")","v":1003}]
[null,null,"Stav daně",null,{"$f":"IFERROR(INDEX(Zaměstnanci[Stav daně],Výplatnice),\"\")","v":1},null,"Federální příspěvek (z W-4)",null,{"$f":"IFERROR(INDEX(Zaměstnanci[Federální přísp.],Výplatnice),\"\")","v":3},null,"Odpracované hodiny",null,{"$f":"IFERROR(INDEX(Zaměstnanci[Odpracované prav. hodiny],Výplatnice),\"\")","v":35}]
[null,null,"Hodinová sazba",null,{"$f":"IFERROR(INDEX(Zaměstnanci[Hodinová mzda],Výplatnice),\"\")","v":14},null,"Přesčasová sazba",null,{"$f":"IFERROR(INDEX(Zaměstnanci[Přesčasová sazba],Výplatnice),\"\")","v":0},null,"Počet hodin nemocenské",null,{"$f":"IFERROR(INDEX(Zaměstnanci[Počet hodin nemocenské],Výplatnice),\"\")","v":0}]
[null,null,"Sociální pojištění",null,{"$f":"IFERROR(INDEX(Zaměstnanci[Sociální pojištění],Výplatnice)  *  INDEX(Zaměstnanci[Hrubá mzda],Výplatnice),\"\")","v":33.515999999999998},null,"Federální daň z příjmů",null,{"$f":"IFERROR(INDEX(Zaměstnanci[Federální daň z příjmů],Výplatnice)  *  INDEX(Zaměstnanci[Hrubá mzda],Výplatnice),\"\")","v":148.96},null,"Počet hodin dovolené",null,{"$f":"IFERROR(INDEX(Zaměstnanci[Počet hodin dovolené],Výplatnice),\"\")","v":3}]
[null,null,"Zdravotní pojištění ",null,{"$f":"IFERROR(INDEX(Zaměstnanci[Zdravotní pojištění],Výplatnice)  *  INDEX(Zaměstnanci[Hrubá mzda],Výplatnice),\"\")","v":7.7140000000000004},null,"Státní daň",null,{"$f":"IFERROR(INDEX(Zaměstnanci[Státní daň],Výplatnice)  *  INDEX(Zaměstnanci[Hrubá mzda],Výplatnice),\"\")","v":12.236000000000001},null,"Hodiny přesčas",null,{"$f":"IFERROR(INDEX(Zaměstnanci[Hodiny přesčas],Výplatnice),\"\")","v":0}]
[null,null,"Srážka pojištění",null,{"$f":"IFERROR(INDEX(Zaměstnanci[Srážka pojištění],Výplatnice),\"\")","v":18},null,"Jiné pravidelné srážky",null,{"$f":"IFERROR(INDEX(Zaměstnanci[Ostatní pravidelné srážky],Výplatnice),\"\")","v":20},null,"Hrubá mzda",null,{"$f":"IFERROR(INDEX(Zaměstnanci[Hrubá mzda],Výplatnice),\"\")","v":532}]
[null,null,"Daně celkem",null,{"$f":"IFERROR(INDEX(Zaměstnanci[Daně a sráž.],Výplatnice),\"\")","v":240.42600000000004},null,"Jiné srážky",null,{"$f":"IFERROR(INDEX(Zaměstnanci[Jiné odpočty:],Výplatnice),\"\")","v":0},null,"Daně a odpočty celkem",null,{"$f":"IFERROR(INDEX(Zaměstnanci[Daně a sráž.],Výplatnice)  +  INDEX(Zaměstnanci[Jiné odpočty:],Výplatnice),\"\")","v":240.42600000000004}]
[null,null,"Pravidelné srážky"]
[null,null,null,null,null,null,null,null,null,null,"ČISTÁ MZDA",null,{"$f":"IFERROR(INDEX(Zaměstnanci[Čistá mzda],Výplatnice),\"\")","v":291.57399999999996}]
[]
[]
[null,null,{"$f":"NázevSpolečnosti","v":"ADVENTURE WORKS"}]
[null,null,"OBDOBÍ",{"$f":"KonecObdobí","v":41372},null,null,"JMÉNO",{"$f":"IFERROR(INDEX(Zaměstnanci[Jméno zaměstnance],Výplatnice),\"\")","v":"Sebastien Motte"},null,null,"ID ZAMĚSTNANCE",{"$f":"IFERROR(INDEX(Zaměstnanci[ID],Výplatnice),\"\")","v":1008}]
[null,null,"Stav daně",null,{"$f":"IFERROR(INDEX(Zaměstnanci[Stav daně],Výplatnice),\"\")","v":1},null,"Federální příspěvek (z W-4)",null,{"$f":"IFERROR(INDEX(Zaměstnanci[Federální přísp.],Výplatnice),\"\")","v":0},null,"Odpracované hodiny",null,{"$f":"IFERROR(INDEX(Zaměstnanci[Odpracované prav. hodiny],Výplatnice),\"\")","v":50}]
[null,null,"Hodinová sazba",null,{"$f":"IFERROR(INDEX(Zaměstnanci[Hodinová mzda],Výplatnice),\"\")","v":20},null,"Přesčasová sazba",null,{"$f":"IFERROR(INDEX(Zaměstnanci[Přesčasová sazba],Výplatnice),\"\")","v":0},null,"Počet hodin nemocenské",null,{"$f":"IFERROR(INDEX(Zaměstnanci[Počet hodin nemocenské],Výplatnice),\"\")","v":1}]
[null,null,"Sociální pojištění",null,{"$f":"IFERROR(INDEX(Zaměstnanci[Sociální pojištění],Výplatnice)  *  INDEX(Zaměstnanci[Hrubá mzda],Výplatnice),\"\")","v":70.56},null,"Federální daň z příjmů",null,{"$f":"IFERROR(INDEX(Zaměstnanci[Federální daň z příjmů],Výplatnice)  *  INDEX(Zaměstnanci[Hrubá mzda],Výplatnice),\"\")","v":313.60000000000002},null,"Počet hodin dovolené",null,{"$f":"IFERROR(INDEX(Zaměstnanci[Počet hodin dovolené],Výplatnice),\"\")","v":5}]
[null,null,"Zdravotní pojištění ",null,{"$f":"IFERROR(INDEX(Zaměstnanci[Zdravotní pojištění],Výplatnice)  *  INDEX(Zaměstnanci[Hrubá mzda],Výplatnice),\"\")","v":16.240000000000002},null,"Státní daň",null,{"$f":"IFERROR(INDEX(Zaměstnanci[Státní daň],Výplatnice)  *  INDEX(Zaměstnanci[Hrubá mzda],Výplatnice),\"\")","v":25.759999999999998},null,"Hodiny přesčas",null,{"$f":"IFERROR(INDEX(Zaměstnanci[Hodiny přesčas],Výplatnice),\"\")","v":0}]
[null,null,"Srážka pojištění",null,{"$f":"IFERROR(INDEX(Zaměstnanci[Srážka pojištění],Výplatnice),\"\")","v":15},null,"Jiné pravidelné srážky",null,{"$f":"IFERROR(INDEX(Zaměstnanci[Ostatní pravidelné srážky],Výplatnice),\"\")","v":0},null,"Hrubá mzda",null,{"$f":"IFERROR(INDEX(Zaměstnanci[Hrubá mzda],Výplatnice),\"\")","v":1120}]
[null,null,"Daně celkem",null,{"$f":"IFERROR(INDEX(Zaměstnanci[Daně a sráž.],Výplatnice),\"\")","v":441.16000000000008},null,"Jiné srážky",null,{"$f":"IFERROR(INDEX(Zaměstnanci[Jiné odpočty:],Výplatnice),\"\")","v":0},null,"Daně a odpočty celkem",null,{"$f":"IFERROR(INDEX(Zaměstnanci[Daně a sráž.],Výplatnice)  +  INDEX(Zaměstnanci[Jiné odpočty:],Výplatnice),\"\")","v":441.16000000000008}]
[null,null,"Pravidelné srážky"]
[null,null,null,null,null,null,null,null,null,null,"ČISTÁ MZDA",null,{"$f":"IFERROR(INDEX(Zaměstnanci[Čistá mzda],Výplatnice),\"\")","v":678.83999999999992}]